[Event "Titled Tuesday Blitz November 01 Early 2022"]
[White "Grover, Sahaj"]
[Black "Muminova, Nafisa"]
[WhiteFideId "5021103"]
[BlackFideId "14201526"]
[WhiteElo "2432"]
[BlackElo "2258"]
[Result "1-0"]
[Round "01"]
[TimeControl "180+1"]
[Date "2022.11.02"]
[WhiteClock "0:00:27"]
[BlackClock "0:00:24"]

1. e4 {[%clk 0:02:56]}  e6 {[%clk 0:02:59]} 2. d4 {[%clk 0:02:56]}  d5 {[%clk 0:03:00]} 3. Nc3 {[%clk 0:02:56]}  Nf6 {[%clk 0:03:00]} 4. e5 {[%clk 0:02:56]}  Nfd7 {[%clk 0:03:00]} 5. f4 {[%clk 0:02:56]}  c5 {[%clk 0:03:00]} 6. Nf3 {[%clk 0:02:57]}  Nc6 {[%clk 0:03:00]} 7. Be3 {[%clk 0:02:58]}  Qb6 {[%clk 0:02:58]} 8. Na4 {[%clk 0:02:55]}  Qa5+ {[%clk 0:02:57]} 9. c3 {[%clk 0:02:55]}  b6 {[%clk 0:02:55]} 10. Be2 {[%clk 0:02:31]}  Ba6 {[%clk 0:02:50]} 11. Bxa6 {[%clk 0:02:07]}  Qxa6 {[%clk 0:02:49]} 12. b3 {[%clk 0:01:55]}  cxd4 {[%clk 0:02:41]} 13. Nxd4 {[%clk 0:01:56]}  Nxd4 {[%clk 0:02:39]} 14. Bxd4 {[%clk 0:01:56]}  Nc5 {[%clk 0:02:14]} 15. Nb2 {[%clk 0:01:48]}  Ne4 {[%clk 0:02:04]} 16. Qe2 {[%clk 0:01:43]}  Qxe2+ {[%clk 0:01:55]} 17. Kxe2 {[%clk 0:01:43]}  Rc8 {[%clk 0:01:55]} 18. c4 {[%clk 0:01:32]}  Ba3 {[%clk 0:01:43]} 19. Ke3 {[%clk 0:01:28]}  Ke7 {[%clk 0:01:38]} 20. cxd5 {[%clk 0:01:27]}  exd5 {[%clk 0:01:37]} 21. Rac1 {[%clk 0:01:25]}  Kd7 {[%clk 0:01:06]} 22. f5 {[%clk 0:01:15]}  Rhe8 {[%clk 0:01:05]} 23. g4 {[%clk 0:01:06]}  g6 {[%clk 0:00:57]} 24. Rhf1 {[%clk 0:01:05]}  g5 {[%clk 0:00:53]} 25. h4 {[%clk 0:00:48]}  gxh4 {[%clk 0:00:40]} 26. Rxc8 {[%clk 0:00:46]}  Rxc8 {[%clk 0:00:39]} 27. Rh1 {[%clk 0:00:47]}  Rc2 {[%clk 0:00:36]} 28. Nd3 {[%clk 0:00:47]}  Re2+ {[%clk 0:00:29]} 29. Kxe2 {[%clk 0:00:43]}  Ng3+ {[%clk 0:00:29]} 30. Kf3 {[%clk 0:00:43]}  Nxh1 {[%clk 0:00:30]} 31. Nf4 {[%clk 0:00:39]}  Ng3 {[%clk 0:00:28]} 32. Nxd5 {[%clk 0:00:34]}  Bc5 {[%clk 0:00:20]} 33. Bxc5 {[%clk 0:00:31]}  bxc5 {[%clk 0:00:21]} 34. Nf6+ {[%clk 0:00:28]}  Ke7 {[%clk 0:00:21]} 35. Nxh7 {[%clk 0:00:28]}  Nf1 {[%clk 0:00:22]} 36. Ng5 {[%clk 0:00:24]}  Nd2+ {[%clk 0:00:20]} 37. Kf4 {[%clk 0:00:25]}  Nb1 {[%clk 0:00:20]} 38. f6+ {[%clk 0:00:25]}  Ke8 {[%clk 0:00:19]} 39. Nf3 {[%clk 0:00:21]}  h3 {[%clk 0:00:18]} 40. Kg3 {[%clk 0:00:22]}  Nc3 {[%clk 0:00:18]} 41. a4 {[%clk 0:00:20]}  Na2 {[%clk 0:00:18]} 42. Kxh3 {[%clk 0:00:20]}  Nc1 {[%clk 0:00:18]} 43. Nd2 {[%clk 0:00:21]}  Nd3 {[%clk 0:00:18]} 44. Kg3 {[%clk 0:00:20]}  Nxe5 {[%clk 0:00:18]} 45. Kf4 {[%clk 0:00:21]}  Nc6 {[%clk 0:00:19]} 46. g5 {[%clk 0:00:21]}  Nd4 {[%clk 0:00:19]} 47. Ke5 {[%clk 0:00:20]}  Kd7 {[%clk 0:00:18]} 48. Kd5 {[%clk 0:00:20]}  Ne6 {[%clk 0:00:19]} 49. Ne4 {[%clk 0:00:20]}  a5 {[%clk 0:00:18]} 50. Nxc5+ {[%clk 0:00:20]}  Nxc5 {[%clk 0:00:17]} 51. Kxc5 {[%clk 0:00:21]}  Ke6 {[%clk 0:00:18]} 52. b4 {[%clk 0:00:22]}  Kf5 {[%clk 0:00:19]} 53. bxa5 {[%clk 0:00:22]}  Kxg5 {[%clk 0:00:20]} 54. a6 {[%clk 0:00:23]}  Kxf6 {[%clk 0:00:20]} 55. a7 {[%clk 0:00:24]}  Kg5 {[%clk 0:00:21]} 56. a8=Q {[%clk 0:00:25]}  f5 {[%clk 0:00:22]} 57. Qf3 {[%clk 0:00:24]}  f4 {[%clk 0:00:23]} 58. a5 {[%clk 0:00:25]}  Kf5 {[%clk 0:00:23]} 59. a6 {[%clk 0:00:26]}  Ke5 {[%clk 0:00:23]} 60. a7 {[%clk 0:00:27]}  Kf5 {[%clk 0:00:24]} 61. a8=Q {[%clk 0:00:27]} 1-0


[Site "https://www.chess.com"]

[Event "Titled Tuesday Blitz November 01 Early 2022"]
[White "Gubajdullin, Alexei"]
[Black "Shapiro, Daniel"]
[WhiteFideId "4141202"]
[BlackFideId "2001780"]
[WhiteElo "2200"]
[BlackElo "2246"]
[Result "1-0"]
[Round "01"]
[TimeControl "180+1"]
[Date "2022.11.02"]
[WhiteClock "0:00:18"]
[BlackClock "0:00:05"]

1. d4 {[%clk 0:02:04]}  Nf6 {[%clk 0:02:58]} 2. Nf3 {[%clk 0:02:04]}  b6 {[%clk 0:02:55]} 3. Bf4 {[%clk 0:02:04]}  Bb7 {[%clk 0:02:54]} 4. e3 {[%clk 0:02:04]}  e6 {[%clk 0:02:54]} 5. h3 {[%clk 0:02:04]}  d6 {[%clk 0:02:54]} 6. Be2 {[%clk 0:02:04]}  Nbd7 {[%clk 0:02:55]} 7. O-O {[%clk 0:02:04]}  g6 {[%clk 0:02:55]} 8. a4 {[%clk 0:02:03]}  a6 {[%clk 0:02:54]} 9. a5 {[%clk 0:02:04]}  b5 {[%clk 0:02:53]} 10. c4 {[%clk 0:02:04]}  c6 {[%clk 0:02:41]} 11. Nbd2 {[%clk 0:01:55]}  Qe7 {[%clk 0:02:41]} 12. e4 {[%clk 0:01:53]}  e5 {[%clk 0:02:41]} 13. Be3 {[%clk 0:01:49]}  Bg7 {[%clk 0:02:39]} 14. Re1 {[%clk 0:01:26]}  O-O {[%clk 0:02:38]} 15. Bf1 {[%clk 0:01:26]}  Rfe8 {[%clk 0:02:33]} 16. b3 {[%clk 0:01:22]}  Rac8 {[%clk 0:02:20]} 17. d5 {[%clk 0:01:19]}  Nc5 {[%clk 0:02:11]} 18. Qb1 {[%clk 0:01:17]}  Nh5 {[%clk 0:02:03]} 19. dxc6 {[%clk 0:01:15]}  Bxc6 {[%clk 0:02:01]} 20. cxb5 {[%clk 0:01:15]}  axb5 {[%clk 0:01:46]} 21. g3 {[%clk 0:01:14]}  Qe6 {[%clk 0:01:36]} 22. b4 {[%clk 0:01:12]}  Na4 {[%clk 0:01:33]} 23. Ng5 {[%clk 0:01:05]}  Qd7 {[%clk 0:01:20]} 24. Qb3 {[%clk 0:01:04]}  d5 {[%clk 0:01:10]} 25. exd5 {[%clk 0:01:00]}  Bxd5 {[%clk 0:01:10]} 26. Bxb5 {[%clk 0:00:58]}  Qxb5 {[%clk 0:01:02]} 27. Qxa4 {[%clk 0:00:58]}  Qb7 {[%clk 0:00:57]} 28. Bc5 {[%clk 0:00:50]}  f5 {[%clk 0:00:51]} 29. a6 {[%clk 0:00:45]}  Qa8 {[%clk 0:00:51]} 30. Ra3 {[%clk 0:00:26]}  h6 {[%clk 0:00:44]} 31. Ngf3 {[%clk 0:00:26]}  e4 {[%clk 0:00:39]} 32. Nh4 {[%clk 0:00:25]}  Kh7 {[%clk 0:00:36]} 33. Nf1 {[%clk 0:00:20]}  f4 {[%clk 0:00:16]} 34. Qd7 {[%clk 0:00:19]}  fxg3 {[%clk 0:00:09]} 35. fxg3 {[%clk 0:00:18]}  Rxc5 {[%clk 0:00:05]} 36. bxc5 {[%clk 0:00:18]} 1-0


[Site "https://www.chess.com"]

[Event "Titled Tuesday Blitz November 01 Early 2022"]
[White "Gulevich, Artem"]
[Black "Dominguez Perez, Leinier"]
[WhiteFideId "24119580"]
[BlackFideId "3503240"]
[WhiteElo "2218"]
[BlackElo "2647"]
[Result "0-1"]
[Round "01"]
[TimeControl "180+1"]
[Date "2022.11.01"]
[WhiteClock "0:00:01"]
[BlackClock "0:00:41"]

1. Nf3 {[%clk 0:02:59]}  Nf6 {[%clk 0:02:58]} 2. b3 {[%clk 0:02:58]}  c5 {[%clk 0:02:57]} 3. Bb2 {[%clk 0:02:59]}  g6 {[%clk 0:02:56]} 4. e3 {[%clk 0:02:59]}  Bg7 {[%clk 0:02:56]} 5. Be2 {[%clk 0:02:59]}  O-O {[%clk 0:02:55]} 6. O-O {[%clk 0:03:00]}  d5 {[%clk 0:02:56]} 7. d4 {[%clk 0:03:00]}  cxd4 {[%clk 0:02:55]} 8. Nxd4 {[%clk 0:03:01]}  Nc6 {[%clk 0:02:47]} 9. Nd2 {[%clk 0:03:01]}  Nxd4 {[%clk 0:02:28]} 10. Bxd4 {[%clk 0:03:01]}  Bf5 {[%clk 0:02:18]} 11. c4 {[%clk 0:03:00]}  dxc4 {[%clk 0:02:11]} 12. Nxc4 {[%clk 0:03:00]}  Ne4 {[%clk 0:02:00]} 13. Bxg7 {[%clk 0:02:53]}  Kxg7 {[%clk 0:02:01]} 14. Bf3 {[%clk 0:02:51]}  h5 {[%clk 0:01:48]} 15. Qc1 {[%clk 0:02:26]}  b5 {[%clk 0:01:35]} 16. Rd1 {[%clk 0:01:59]}  Qc7 {[%clk 0:01:28]} 17. Qb2+ {[%clk 0:01:48]}  f6 {[%clk 0:01:27]} 18. Nd2 {[%clk 0:01:46]}  Qc3 {[%clk 0:01:22]} 19. Qxc3 {[%clk 0:01:09]}  Nxc3 {[%clk 0:01:23]} 20. Bxa8 {[%clk 0:01:03]}  Nxd1 {[%clk 0:01:22]} 21. Rxd1 {[%clk 0:01:04]}  Rxa8 {[%clk 0:01:21]} 22. Nf3 {[%clk 0:01:02]}  Rc8 {[%clk 0:01:18]} 23. Nd4 {[%clk 0:00:55]}  Bd7 {[%clk 0:01:18]} 24. h4 {[%clk 0:00:53]}  Kf7 {[%clk 0:01:17]} 25. Kf1 {[%clk 0:00:51]}  e5 {[%clk 0:01:15]} 26. Ne2 {[%clk 0:00:25]}  Ke7 {[%clk 0:01:11]} 27. Rc1 {[%clk 0:00:24]}  Rxc1+ {[%clk 0:01:10]} 28. Nxc1 {[%clk 0:00:24]}  b4 {[%clk 0:01:06]} 29. Ke2 {[%clk 0:00:21]}  Kd6 {[%clk 0:01:02]} 30. Kd2 {[%clk 0:00:16]}  a5 {[%clk 0:00:57]} 31. Nd3 {[%clk 0:00:14]}  Bc6 {[%clk 0:00:55]} 32. f3 {[%clk 0:00:13]}  e4 {[%clk 0:00:52]} 33. Ne1 {[%clk 0:00:10]}  exf3 {[%clk 0:00:51]} 34. gxf3 {[%clk 0:00:08]}  g5 {[%clk 0:00:50]} 35. hxg5 {[%clk 0:00:07]}  fxg5 {[%clk 0:00:51]} 36. Ke2 {[%clk 0:00:05]}  g4 {[%clk 0:00:49]} 37. fxg4 {[%clk 0:00:05]}  hxg4 {[%clk 0:00:50]} 38. Nd3 {[%clk 0:00:05]}  Be4 {[%clk 0:00:44]} 39. Nf4 {[%clk 0:00:03]}  Bb1 {[%clk 0:00:42]} 40. Kd2 {[%clk 0:00:01]}  g3 {[%clk 0:00:41]} 0-1


[Site "https://www.chess.com"]

[Event "Titled Tuesday Blitz November 01 Early 2022"]
[White "Harriott, Tyrell"]
[Black "Nasuta, Grzegorz"]
[WhiteFideId "2086484"]
[BlackFideId "1141686"]
[WhiteElo "2107"]
[BlackElo "2442"]
[Result "0-1"]
[Round "01"]
[TimeControl "180+1"]
[Date "2022.11.02"]
[WhiteClock "0:00:39"]
[BlackClock "0:00:22"]

1. d4 {[%clk 0:02:52]}  d6 {[%clk 0:02:59]} 2. e3 {[%clk 0:02:53]}  g6 {[%clk 0:02:55]} 3. Bd3 {[%clk 0:02:53]}  Bg7 {[%clk 0:02:55]} 4. f4 {[%clk 0:02:54]}  Nf6 {[%clk 0:02:54]} 5. Nf3 {[%clk 0:02:54]}  O-O {[%clk 0:02:53]} 6. O-O {[%clk 0:02:54]}  c5 {[%clk 0:02:53]} 7. c3 {[%clk 0:02:54]}  Nc6 {[%clk 0:02:53]} 8. Bc2 {[%clk 0:02:55]}  e6 {[%clk 0:02:46]} 9. Kh1 {[%clk 0:02:52]}  b6 {[%clk 0:02:46]} 10. Nbd2 {[%clk 0:02:45]}  Bb7 {[%clk 0:02:46]} 11. a3 {[%clk 0:02:44]}  Rc8 {[%clk 0:02:45]} 12. Bd3 {[%clk 0:02:42]}  e5 {[%clk 0:02:34]} 13. dxe5 {[%clk 0:02:36]}  dxe5 {[%clk 0:02:34]} 14. Bc2 {[%clk 0:02:36]}  Qe7 {[%clk 0:02:21]} 15. f5 {[%clk 0:02:34]}  Rcd8 {[%clk 0:02:11]} 16. Qe1 {[%clk 0:02:22]}  e4 {[%clk 0:01:34]} 17. Ng5 {[%clk 0:02:19]}  Ne5 {[%clk 0:01:30]} 18. fxg6 {[%clk 0:02:14]}  hxg6 {[%clk 0:01:08]} 19. Qh4 {[%clk 0:02:08]}  Nh5 {[%clk 0:01:08]} 20. Bd1 {[%clk 0:01:35]}  Bh6 {[%clk 0:00:52]} 21. Ngf3 {[%clk 0:01:28]}  Qxh4 {[%clk 0:00:50]} 22. Nxh4 {[%clk 0:01:28]}  Bxe3 {[%clk 0:00:46]} 23. Bxh5 {[%clk 0:01:26]}  Bxd2 {[%clk 0:00:44]} 24. Be2 {[%clk 0:01:16]}  Bxc1 {[%clk 0:00:39]} 25. Raxc1 {[%clk 0:01:15]}  Rd2 {[%clk 0:00:39]} 26. Bd1 {[%clk 0:01:01]}  Rxb2 {[%clk 0:00:37]} 27. Ba4 {[%clk 0:00:52]}  e3 {[%clk 0:00:35]} 28. Kg1 {[%clk 0:00:48]}  e2 {[%clk 0:00:25]} 29. Rfe1 {[%clk 0:00:46]}  Nd3 {[%clk 0:00:26]} 30. Nf3 {[%clk 0:00:42]}  Nxc1 {[%clk 0:00:24]} 31. Rxc1 {[%clk 0:00:42]}  Bxf3 {[%clk 0:00:24]} 32. gxf3 {[%clk 0:00:42]}  Rd8 {[%clk 0:00:23]} 33. Kf2 {[%clk 0:00:39]}  Rd1 {[%clk 0:00:22]} 0-1


[Site "https://www.chess.com"]

[Event "Titled Tuesday Blitz November 01 Early 2022"]
[White "Hernandez Jimenez, Alexander Andres"]
[Black "Maatman, Nick"]
[WhiteFideId "3900452"]
[BlackFideId "1040391"]
[WhiteElo "2098"]
[BlackElo "2616"]
[Result "1/2-1/2"]
[Round "01"]
[TimeControl "180+1"]
[Date "2022.11.02"]
[WhiteClock "0:00:06"]
[BlackClock "0:01:31"]

1. e4 {[%clk 0:02:54]}  e6 {[%clk 0:03:00]} 2. d4 {[%clk 0:02:54]}  d5 {[%clk 0:03:01]} 3. Nc3 {[%clk 0:02:54]}  Bb4 {[%clk 0:03:00]} 4. exd5 {[%clk 0:02:52]}  exd5 {[%clk 0:03:00]} 5. Bd3 {[%clk 0:02:53]}  Nf6 {[%clk 0:03:00]} 6. Ne2 {[%clk 0:02:53]}  O-O {[%clk 0:03:01]} 7. O-O {[%clk 0:02:53]}  Re8 {[%clk 0:02:57]} 8. Bg5 {[%clk 0:02:53]}  c6 {[%clk 0:02:54]} 9. a3 {[%clk 0:02:49]}  Be7 {[%clk 0:02:52]} 10. b4 {[%clk 0:02:46]}  Nbd7 {[%clk 0:02:52]} 11. Ng3 {[%clk 0:02:43]}  Nf8 {[%clk 0:02:52]} 12. Nf5 {[%clk 0:02:42]}  Bxf5 {[%clk 0:02:51]} 13. Bxf5 {[%clk 0:02:41]}  a5 {[%clk 0:02:52]} 14. b5 {[%clk 0:02:40]}  Ng6 {[%clk 0:02:49]} 15. Qd2 {[%clk 0:02:35]}  Qd6 {[%clk 0:02:47]} 16. Rfe1 {[%clk 0:02:33]}  Bf8 {[%clk 0:02:45]} 17. a4 {[%clk 0:02:17]}  Rxe1+ {[%clk 0:02:44]} 18. Rxe1 {[%clk 0:02:16]}  h6 {[%clk 0:02:39]} 19. Bxg6 {[%clk 0:02:02]}  fxg6 {[%clk 0:02:39]} 20. Bf4 {[%clk 0:02:01]}  Qb4 {[%clk 0:02:36]} 21. Qd3 {[%clk 0:01:58]}  Kh7 {[%clk 0:02:32]} 22. bxc6 {[%clk 0:01:40]}  bxc6 {[%clk 0:02:31]} 23. Rb1 {[%clk 0:01:40]}  Qe7 {[%clk 0:02:23]} 24. Be5 {[%clk 0:01:38]}  Ng4 {[%clk 0:02:14]} 25. f4 {[%clk 0:01:32]}  Qh4 {[%clk 0:02:12]} 26. Qg3 {[%clk 0:01:27]}  Qh5 {[%clk 0:02:08]} 27. h3 {[%clk 0:00:55]}  Nxe5 {[%clk 0:02:08]} 28. fxe5 {[%clk 0:00:52]}  Bb4 {[%clk 0:02:08]} 29. Rf1 {[%clk 0:00:43]}  Kg8 {[%clk 0:02:02]} 30. e6 {[%clk 0:00:36]}  Re8 {[%clk 0:02:01]} 31. Na2 {[%clk 0:00:27]}  Rxe6 {[%clk 0:01:56]} 32. Nxb4 {[%clk 0:00:27]}  axb4 {[%clk 0:01:56]} 33. Qb8+ {[%clk 0:00:26]}  Kh7 {[%clk 0:01:55]} 34. Rf8 {[%clk 0:00:24]}  Qd1+ {[%clk 0:01:49]} 35. Kh2 {[%clk 0:00:24]}  g5 {[%clk 0:01:50]} 36. Rh8+ {[%clk 0:00:23]}  Kg6 {[%clk 0:01:50]} 37. Qxb4 {[%clk 0:00:18]}  Qxc2 {[%clk 0:01:46]} 38. Qf8 {[%clk 0:00:09]}  Re2 {[%clk 0:01:42]} 39. Qf3 {[%clk 0:00:07]}  Rd2 {[%clk 0:01:35]} 40. Rf8 {[%clk 0:00:06]}  Rxd4 {[%clk 0:01:31]} 41. Qf7+ {[%clk 0:00:06]}  Kh7 {[%clk 0:01:30]} 42. Qg8+ {[%clk 0:00:06]}  Kg6 {[%clk 0:01:30]} 43. Qf7+ {[%clk 0:00:06]}  Kh7 {[%clk 0:01:31]} 44. Qg8+ {[%clk 0:00:06]}  Kg6 {[%clk 0:01:31]} 45. Qf7+ {[%clk 0:00:06]} 1/2-1/2


[Site "https://www.chess.com"]

[Event "Titled Tuesday Blitz November 01 Early 2022"]
[White "Hnydiuk, Aleksander"]
[Black "Shankland, Sam"]
[WhiteFideId "1109057"]
[BlackFideId "2004887"]
[WhiteElo "2374"]
[BlackElo "2612"]
[Result "0-1"]
[Round "01"]
[TimeControl "180+1"]
[Date "2022.11.01"]
[WhiteClock "0:01:23"]
[BlackClock "0:02:06"]

1. e4 {[%clk 0:02:58]}  c5 {[%clk 0:02:59]} 2. Nf3 {[%clk 0:02:58]}  d6 {[%clk 0:02:59]} 3. d4 {[%clk 0:02:58]}  cxd4 {[%clk 0:03:00]} 4. Nxd4 {[%clk 0:02:59]}  Nf6 {[%clk 0:03:00]} 5. Nc3 {[%clk 0:03:00]}  Nc6 {[%clk 0:03:01]} 6. Bg5 {[%clk 0:02:59]}  e6 {[%clk 0:03:00]} 7. Qd2 {[%clk 0:03:00]}  a6 {[%clk 0:03:00]} 8. O-O-O {[%clk 0:02:59]}  Bd7 {[%clk 0:03:00]} 9. f3 {[%clk 0:02:59]}  Nxd4 {[%clk 0:03:00]} 10. Qxd4 {[%clk 0:02:58]}  Be7 {[%clk 0:03:00]} 11. Kb1 {[%clk 0:02:51]}  Qc7 {[%clk 0:02:59]} 12. Be3 {[%clk 0:02:34]}  h5 {[%clk 0:02:58]} 13. Qd2 {[%clk 0:02:06]}  b5 {[%clk 0:02:58]} 14. Bd3 {[%clk 0:02:06]}  b4 {[%clk 0:02:51]} 15. Ne2 {[%clk 0:02:05]}  a5 {[%clk 0:02:52]} 16. g3 {[%clk 0:01:54]}  a4 {[%clk 0:02:37]} 17. h3 {[%clk 0:01:52]}  a3 {[%clk 0:02:29]} 18. b3 {[%clk 0:01:51]}  d5 {[%clk 0:02:30]} 19. g4 {[%clk 0:01:33]}  dxe4 {[%clk 0:02:28]} 20. fxe4 {[%clk 0:01:33]}  Bc6 {[%clk 0:02:23]} 21. Ng3 {[%clk 0:01:23]}  Qxg3 {[%clk 0:02:06]} 22. Bf4 {[%clk 0:01:23]}  Qf3 {[%clk 0:02:06]} 0-1


[Site "https://www.chess.com"]

[Event "Titled Tuesday Blitz November 01 Early 2022"]
[White "Hoffmann, Asa"]
[Black "Fernandez De La Vara, Arnaldo"]
[WhiteFideId "2001470"]
[BlackFideId "3518388"]
[WhiteElo "2117"]
[BlackElo "2387"]
[Result "1/2-1/2"]
[Round "01"]
[TimeControl "180+1"]
[Date "2022.11.02"]
[WhiteClock "0:00:41"]
[BlackClock "0:00:07"]

1. d4 {[%clk 0:02:53]}  c5 {[%clk 0:03:00]} 2. dxc5 {[%clk 0:02:51]}  Nf6 {[%clk 0:03:01]} 3. Nc3 {[%clk 0:02:45]}  Qa5 {[%clk 0:03:00]} 4. Be3 {[%clk 0:02:30]}  Ne4 {[%clk 0:02:57]} 5. Qd4 {[%clk 0:02:26]}  Nxc3 {[%clk 0:02:55]} 6. Qxc3 {[%clk 0:02:26]}  Qxc3+ {[%clk 0:02:55]} 7. bxc3 {[%clk 0:02:26]}  Na6 {[%clk 0:02:53]} 8. g3 {[%clk 0:02:21]}  e6 {[%clk 0:02:53]} 9. Bg2 {[%clk 0:02:20]}  Bxc5 {[%clk 0:02:45]} 10. Bd4 {[%clk 0:02:18]}  f6 {[%clk 0:02:28]} 11. Rb1 {[%clk 0:02:16]}  Rb8 {[%clk 0:02:28]} 12. e3 {[%clk 0:02:13]}  b6 {[%clk 0:02:22]} 13. Ne2 {[%clk 0:02:11]}  Bb7 {[%clk 0:02:21]} 14. O-O {[%clk 0:02:06]}  Ke7 {[%clk 0:02:10]} 15. Rfd1 {[%clk 0:02:05]}  Rhc8 {[%clk 0:02:08]} 16. h4 {[%clk 0:01:58]}  Rc7 {[%clk 0:01:37]} 17. Kf1 {[%clk 0:01:53]}  Rbc8 {[%clk 0:01:35]} 18. Bxb7 {[%clk 0:01:51]}  Rxb7 {[%clk 0:01:36]} 19. Ke1 {[%clk 0:01:49]}  Rbc7 {[%clk 0:01:35]} 20. Rb3 {[%clk 0:01:45]}  Rc6 {[%clk 0:01:04]} 21. Rdb1 {[%clk 0:01:44]}  Bd6 {[%clk 0:00:50]} 22. e4 {[%clk 0:01:40]}  Nc5 {[%clk 0:00:50]} 23. Bxc5 {[%clk 0:01:40]}  Bxc5 {[%clk 0:00:45]} 24. a4 {[%clk 0:01:38]}  a5 {[%clk 0:00:37]} 25. Rb5 {[%clk 0:01:36]}  Kd8 {[%clk 0:00:37]} 26. f4 {[%clk 0:01:30]}  Kc7 {[%clk 0:00:37]} 27. Kd2 {[%clk 0:01:30]}  Kb7 {[%clk 0:00:36]} 28. Rxa5 {[%clk 0:01:25]}  Bf2 {[%clk 0:00:30]} 29. Rab5 {[%clk 0:01:24]}  Ka6 {[%clk 0:00:30]} 30. R1b3 {[%clk 0:01:21]}  Rc4 {[%clk 0:00:29]} 31. R5b4 {[%clk 0:01:20]}  h5 {[%clk 0:00:24]} 32. Rxc4 {[%clk 0:01:17]}  Rxc4 {[%clk 0:00:25]} 33. Rb4 {[%clk 0:01:18]}  Rc5 {[%clk 0:00:22]} 34. Kd3 {[%clk 0:01:17]}  Ka5 {[%clk 0:00:22]} 35. Kd2 {[%clk 0:01:06]}  Ka6 {[%clk 0:00:22]} 36. Kd3 {[%clk 0:01:06]}  Ka5 {[%clk 0:00:22]} 37. Kd2 {[%clk 0:01:05]}  Rc8 {[%clk 0:00:23]} 38. Kd3 {[%clk 0:00:58]}  g5 {[%clk 0:00:21]} 39. fxg5 {[%clk 0:00:57]}  fxg5 {[%clk 0:00:22]} 40. Rb5+ {[%clk 0:00:57]}  Ka6 {[%clk 0:00:21]} 41. Rxg5 {[%clk 0:00:56]}  Rf8 {[%clk 0:00:21]} 42. Rxh5 {[%clk 0:00:54]}  Rf3+ {[%clk 0:00:21]} 43. Kc4 {[%clk 0:00:54]}  Re3 {[%clk 0:00:20]} 44. Nd4 {[%clk 0:00:52]}  Rxe4 {[%clk 0:00:21]} 45. Rg5 {[%clk 0:00:51]}  e5 {[%clk 0:00:20]} 46. Kd3 {[%clk 0:00:49]}  Re3+ {[%clk 0:00:20]} 47. Kc4 {[%clk 0:00:47]}  exd4 {[%clk 0:00:20]} 48. cxd4 {[%clk 0:00:47]}  Rxg3 {[%clk 0:00:21]} 49. Rxg3 {[%clk 0:00:46]}  Bxg3 {[%clk 0:00:22]} 50. h5 {[%clk 0:00:47]}  Ka5 {[%clk 0:00:22]} 51. h6 {[%clk 0:00:47]}  Bh4 {[%clk 0:00:21]} 52. h7 {[%clk 0:00:46]}  Bf6 {[%clk 0:00:22]} 53. Kb3 {[%clk 0:00:45]}  d5 {[%clk 0:00:22]} 54. c3 {[%clk 0:00:45]}  Bh8 {[%clk 0:00:22]} 55. Ka3 {[%clk 0:00:45]}  b5 {[%clk 0:00:19]} 56. axb5 {[%clk 0:00:44]}  Kxb5 {[%clk 0:00:20]} 57. Kb3 {[%clk 0:00:44]}  Bg7 {[%clk 0:00:20]} 58. Kb2 {[%clk 0:00:44]}  Kc4 {[%clk 0:00:21]} 59. Kc2 {[%clk 0:00:44]}  Bh8 {[%clk 0:00:21]} 60. Kd2 {[%clk 0:00:44]}  Bg7 {[%clk 0:00:20]} 61. Kc2 {[%clk 0:00:44]}  Bf6 {[%clk 0:00:20]} 62. Kd2 {[%clk 0:00:44]}  Kb3 {[%clk 0:00:21]} 63. Kd3 {[%clk 0:00:44]}  Bg7 {[%clk 0:00:20]} 64. Kd2 {[%clk 0:00:43]}  Bf6 {[%clk 0:00:11]} 65. Kd3 {[%clk 0:00:42]}  Bh8 {[%clk 0:00:07]} 66. Kd2 {[%clk 0:00:42]}  Kc4 {[%clk 0:00:07]} 67. Kc2 {[%clk 0:00:42]}  Bf6 {[%clk 0:00:06]} 68. Kd2 {[%clk 0:00:42]}  Bg5+ {[%clk 0:00:07]} 69. Kc2 {[%clk 0:00:41]}  Bf6 {[%clk 0:00:07]} 1/2-1/2


[Site "https://www.chess.com"]

[Event "Titled Tuesday Blitz November 01 Early 2022"]
[White "Horcajuelo Rocamora, Martin"]
[Black "Sargsyan, Anna M."]
[WhiteFideId "24573027"]
[BlackFideId "13308130"]
[WhiteElo "2094"]
[BlackElo "2284"]
[Result "0-1"]
[Round "01"]
[TimeControl "180+1"]
[Date "2022.11.02"]
[WhiteClock "0:01:45"]
[BlackClock "0:01:55"]

1. e4 {[%clk 0:03:00]}  c6 {[%clk 0:02:59]} 2. d4 {[%clk 0:02:57]}  d5 {[%clk 0:03:00]} 3. exd5 {[%clk 0:02:58]}  cxd5 {[%clk 0:03:00]} 4. Bd3 {[%clk 0:02:55]}  Nc6 {[%clk 0:03:01]} 5. c3 {[%clk 0:02:55]}  Nf6 {[%clk 0:03:01]} 6. h3 {[%clk 0:02:54]}  g6 {[%clk 0:03:00]} 7. Nf3 {[%clk 0:02:53]}  Bg7 {[%clk 0:03:00]} 8. O-O {[%clk 0:02:53]}  O-O {[%clk 0:03:00]} 9. Bf4 {[%clk 0:02:54]}  Bf5 {[%clk 0:03:01]} 10. Na3 {[%clk 0:02:45]}  Bxd3 {[%clk 0:02:58]} 11. Qxd3 {[%clk 0:02:46]}  Ne4 {[%clk 0:02:58]} 12. Bh2 {[%clk 0:02:40]}  Rc8 {[%clk 0:02:58]} 13. Rfd1 {[%clk 0:02:35]}  Qb6 {[%clk 0:02:57]} 14. b4 {[%clk 0:02:34]}  Nxb4 {[%clk 0:02:41]} 15. cxb4 {[%clk 0:02:34]}  Rc3 {[%clk 0:02:42]} 16. Qe2 {[%clk 0:02:23]}  Rxa3 {[%clk 0:02:41]} 17. Rac1 {[%clk 0:02:23]}  Nc3 {[%clk 0:02:41]} 18. Qe3 {[%clk 0:02:22]}  Qxb4 {[%clk 0:02:32]} 19. Rd3 {[%clk 0:02:21]}  Rc8 {[%clk 0:02:28]} 20. Be5 {[%clk 0:02:11]}  Ne2+ {[%clk 0:02:27]} 21. Qxe2 {[%clk 0:02:08]}  Rxc1+ {[%clk 0:02:26]} 22. Kh2 {[%clk 0:02:09]}  Rxd3 {[%clk 0:02:26]} 23. Qxd3 {[%clk 0:02:08]}  Qb1 {[%clk 0:02:26]} 24. Qa3 {[%clk 0:02:03]}  Bxe5+ {[%clk 0:02:21]} 25. dxe5 {[%clk 0:02:04]}  Rh1+ {[%clk 0:02:13]} 26. Kg3 {[%clk 0:02:03]}  Qe4 {[%clk 0:02:12]} 27. Qxe7 {[%clk 0:02:01]}  Qf5 {[%clk 0:01:58]} 28. Qd8+ {[%clk 0:01:57]}  Kg7 {[%clk 0:01:57]} 29. Qxd5 {[%clk 0:01:57]}  g5 {[%clk 0:01:54]} 30. Qd4 {[%clk 0:01:52]}  Qf4+ {[%clk 0:01:54]} 31. Qxf4 {[%clk 0:01:53]}  gxf4+ {[%clk 0:01:55]} 32. Kxf4 {[%clk 0:01:53]}  Ra1 {[%clk 0:01:55]} 33. Nd4 {[%clk 0:01:49]}  Rxa2 {[%clk 0:01:55]} 34. Nf5+ {[%clk 0:01:49]}  Kf8 {[%clk 0:01:55]} 35. Kf3 {[%clk 0:01:45]}  a5 {[%clk 0:01:55]} 36. g4 {[%clk 0:01:43]}  a4 {[%clk 0:01:56]} 37. Ke3 {[%clk 0:01:44]}  a3 {[%clk 0:01:56]} 38. Nd4 {[%clk 0:01:45]}  Rb2 {[%clk 0:01:55]} 0-1


[Site "https://www.chess.com"]